bitfinex/quotes_BTCUSD_20220218
["timestamp","ask_amount","ask_price","bid_price","bid_amount"]
[1645224810752,0.00054353,39981.0,39980.0,1.43317698]
[1645224811016,0.00054353,39981.0,39980.0,1.42317398]
[1645224811207,0.00054353,39981.0,39980.0,1.46028707]
[1645224811607,0.00054353,39981.0,39980.0,0.69578707]
[1645224812608,0.00054353,39981.0,39980.0,1.46028707]
[1645224812808,0.00088074,39981.0,39980.0,1.46028707]
[1645224813008,0.00088074,39981.0,39980.0,0.69578707]
[1645224813611,0.00088074,39981.0,39980.0,1.46028707]
[1645224814410,0.00088074,39981.0,39980.0,1.47029007]
[1645224814849,0.00088074,39981.0,39980.0,1.46028707]
[1645224815449,0.00088074,39981.0,39980.0,0.69578707]
[1645224816053,0.00088074,39981.0,39980.0,1.46028707]
[1645224817451,0.00088074,39981.0,39980.0,2.16198707]
[1645224818899,0.00088074,39981.0,39980.0,2.17199007]
[1645224819100,0.00088074,39981.0,39980.0,2.16198707]
[1645224819806,0.1232,39987.0,39985.0,0.01632667]
[1645224820001,0.01,39989.0,39985.0,0.40794767]
[1645224820201,0.01,39989.0,39985.0,0.45794767]
[1645224820403,0.012419,39986.0,39985.0,0.45794767]
[1645224820802,0.0022,39986.0,39985.0,1.22244767]
[1645224828201,0.0022,39986.0,39985.0,1.22640399]
[1645224832466,0.0022,39986.0,39985.0,0.46190399]
[1645224833905,0.0022,39986.0,39985.0,0.66764211]
[1645224834106,0.0022,39986.0,39985.0,0.46190399]
[1645224837552,0.26753897,39986.0,39985.0,0.46190399]
[1645224840756,0.26753897,39986.0,39985.0,0.40580399]
[1645224841013,0.32071702,39986.0,39985.0,0.40580399]
[1645224841210,0.32071702,39986.0,39985.0,0.35386025]
[1645224841606,0.32080257,39986.0,39985.0,0.35386025]
[1645224842007,0.0022,39986.0,39985.0,0.35386025]
[1645224842407,0.012419,39986.0,39985.0,0.35386025]
[1645224842607,0.01469769,39986.0,39985.0,0.35184767]
[1645224842810,0.0154767,39986.0,39985.0,0.35184767]
[1645224844768,0.33407927,39986.0,39985.0,0.35184767]
[1645224847576,0.38707989,39986.0,39985.0,0.35184767]
[1645224847779,0.0052577,39986.0,39985.0,0.35184767]
[1645224847980,0.0154767,39986.0,39985.0,0.01632667]
[1645224848180,0.38707989,39986.0,39985.0,0.35184767]
[1645224848609,0.38707989,39986.0,39985.0,0.01632667]
[1645224848907,0.0154767,39986.0,39985.0,0.01332427]
[1645224849606,0.0052577,39986.0,39985.0,0.01332427]
[1645224850008,0.0052577,39986.0,39985.0,0.34884527]
[1645224851509,0.0154767,39986.0,39985.0,0.34884527]
[1645224851911,0.4654767,39986.0,39985.0,0.01332427]
[1645224852113,0.4654767,39986.0,39980.0,0.11705298]
[1645224852114,0.15,39985.0,39980.0,0.11705298]
[1645224852381,0.59574,39981.0,39980.0,0.11465298]
[1645224852579,0.59574,39981.0,39969.0,0.21080839]
[1645224852580,0.91434495,39981.0,39969.0,0.21080839]
[1645224852779,0.010219,39975.0,39967.0,0.21080839]
[1645224852981,0.010219,39972.0,39968.0,0.335521]
[1645224853179,0.15,39973.0,39968.0,0.335521]
[1645224853180,0.010219,39971.0,39968.0,0.335521]
[1645224853380,0.020438,39971.0,39968.0,0.335521]
[1645224853778,0.020438,39971.0,39968.0,0.385521]
[1645224854283,0.020438,39971.0,39968.0,0.485521]
[1645224854881,0.010219,39971.0,39968.0,0.485521]
[1645224855279,0.010219,39971.0,39968.0,0.535521]
[1645224855480,0.010219,39971.0,39968.0,0.485521]
[1645224855679,0.3,39977.0,39968.0,0.485521]
[1645224855882,0.010219,39974.0,39968.0,0.535521]
[1645224856122,0.010219,39973.0,39968.0,0.535521]
[1645224856320,0.010219,39973.0,39968.0,0.548088]
[1645224856519,0.010219,39972.0,39968.0,0.660652]
[1645224857118,0.010219,39972.0,39968.0,0.548088]
[1645224857318,0.010219,39972.0,39968.0,0.385521]
[1645224857722,0.010219,39972.0,39968.0,0.485521]
[1645224858119,0.010219,39972.0,39970.0,0.00544459]
[1645224858319,0.010219,39972.0,39971.0,0.385521]
[1645224861756,0.010219,39973.0,39971.0,0.385521]
[1645224861956,0.15,39974.0,39971.0,0.385521]
[1645224862157,0.010219,39973.0,39971.0,0.385521]
[1645224863161,0.010219,39973.0,39971.0,0.39095476]
[1645224863358,0.010219,39973.0,39971.0,0.39282482]
[1645224864707,0.010219,39973.0,39972.0,0.335521]
[1645224864907,0.010219,39973.0,39971.0,0.05730382]
[1645224865107,0.010219,39973.0,39972.0,0.335521]
[1645224866911,0.010219,39974.0,39972.0,0.335521]
[1645224867359,0.00851862,39974.0,39972.0,0.335521]
[1645224867961,0.00851862,39974.0,39972.0,0.33752005]
[1645224868863,0.00851862,39974.0,39972.0,0.00199905]
[1645224868864,0.010219,39974.0,39972.0,0.00199905]
[1645224869061,0.160219,39974.0,39972.0,0.00199905]
[1645224870563,0.010219,39974.0,39972.0,0.00199905]
[1645224873205,0.00073857,39973.0,39970.0,0.062564]
[1645224873405,0.00073857,39973.0,39971.0,0.335521]
[1645224873605,0.00073857,39973.0,39970.0,0.062564]
[1645224873804,0.00073857,39973.0,39971.0,0.335521]
[1645224874104,0.00073857,39973.0,39970.0,0.062564]
[1645224874604,0.00073857,39973.0,39971.0,0.335521]
[1645224875058,0.01095757,39973.0,39970.0,0.062564]
[1645224875258,0.010219,39972.0,39970.0,0.062564]
[1645224875459,0.00073857,39973.0,39971.0,0.335521]
[1645224875660,0.01095757,39973.0,39971.0,0.335521]
[1645224876062,0.00073857,39973.0,39971.0,0.335521]
[1645224877162,0.00073857,39973.0,39971.0,1.100021]
[1645224877363,0.00073857,39973.0,39971.0,1.300021]
[1645224877562,0.00073857,39973.0,39971.0,1.250021]
[1645224877763,0.00073857,39973.0,39971.0,1.300021]
[1645224878162,0.00141355,39973.0,39971.0,1.300021]
[1645224880003,0.00141355,39973.0,39971.0,0.93339516]
[1645224881205,0.00141355,39973.0,39971.0,0.98339516]
[1645224881606,0.00141355,39973.0,39971.0,0.99340116]
[1645224881804,0.00141355,39973.0,39971.0,0.98339516]
[1645224882656,0.01163255,39973.0,39971.0,0.98339516]
[1645224882856,0.010219,39973.0,39971.0,0.78941518]
[1645224883059,0.010219,39973.0,39972.0,0.337582]
[1645224883258,0.010219,39974.0,39972.0,0.337582]
[1645224884063,0.07504862,39975.0,39972.0,0.56269]
[1645224884261,0.08526762,39975.0,39973.0,0.06255445]
[1645224884460,0.07504862,39975.0,39974.0,0.272584]
[1645224884661,0.07504862,39975.0,39974.0,0.372584]
[1645224884865,0.07504862,39975.0,39974.0,0.472584]
[1645224885561,0.07504862,39975.0,39974.0,0.535136]
[1645224889214,0.07504862,39975.0,39974.0,1.299636]
[1645224889858,0.010219,39977.0,39976.0,0.22260845]
[1645224890062,0.010219,39979.0,39977.0,0.062544]
[1645224890258,0.207819,39980.0,39977.0,0.39764704]
[1645224890457,0.1976,39980.0,39977.0,0.39764704]
[1645224890662,0.207819,39980.0,39977.0,0.39764704]
[1645224890859,0.1976,39980.0,39977.0,0.39764704]
[1645224891057,0.207819,39980.0,39977.0,0.39764704]
[1645224891458,0.207819,39980.0,39977.0,0.46018904]
[1645224891658,0.207819,39980.0,39978.0,0.062543]
[1645224891858,0.28285798,39980.0,39979.0,0.335457]
[1645224892059,0.27263898,39980.0,39979.0,0.335457]
[1645224892260,0.08423898,39980.0,39979.0,0.485457]
[1645224892562,0.07503898,39980.0,39979.0,0.485457]
[1645224893806,0.07503898,39980.0,39979.0,0.535457]
[1645224895007,0.07503898,39980.0,39979.0,1.299957]
[1645224895312,0.00032593,39985.0,39982.0,0.7645]
[1645224895313,0.010219,39983.0,39982.0,0.7645]
[1645224895508,0.00032593,39985.0,39982.0,1.037024]
[1645224895509,0.010219,39985.0,39982.0,1.037024]
[1645224895709,0.00032593,39984.0,39983.0,1.099919]
[1645224895913,0.00032593,39985.0,39983.0,1.199919]
[1645224896108,0.012419,39986.0,39983.0,1.199919]
[1645224896308,0.00032593,39985.0,39983.0,1.199919]
[1645224896508,0.012419,39986.0,39983.0,1.199919]
[1645224896709,0.00032593,39985.0,39984.0,0.82703]
[1645224896909,0.0022,39986.0,39985.0,1.0999]
[1645224897256,0.0022,39986.0,39985.0,1.2499]
[1645224900463,0.0022,39986.0,39985.0,0.4854]
[1645224900659,0.0022,39986.0,39985.0,1.2499]
[1645224900860,0.0022,39986.0,39985.0,1.0999]
[1645224901114,0.0022,39986.0,39985.0,0.3354]
[1645224901316,0.012419,39986.0,39985.0,0.3354]
[1645224901813,0.0022,39986.0,39985.0,0.3354]
[1645224902212,0.0022,39986.0,39985.0,0.4354]
[1645224902612,0.0022,39986.0,39985.0,1.1999]
[1645224902813,0.0022,39986.0,39985.0,0.4354]
[1645224903017,0.0050372,39986.0,39985.0,0.4354]
[1645224905661,0.0152562,39986.0,39985.0,0.4354]
[1645224906456,0.0152562,39986.0,39985.0,0.3354]
[1645224907559,0.0050372,39986.0,39985.0,0.3354]
[1645224907858,0.0152562,39986.0,39985.0,0.3354]
[1645224908713,0.0152562,39986.0,39985.0,0.4354]
[1645224908914,0.0050372,39986.0,39985.0,0.4354]
[1645224910016,0.0050372,39986.0,39985.0,0.2191803]
[1645224910417,0.0152562,39986.0,39985.0,0.1191803]
[1645224911117,0.0050372,39986.0,39985.0,0.1191803]
[1645224913361,0.0022,39986.0,39985.0,0.12123084]
[1645224913563,0.012419,39986.0,39985.0,0.12123084]
[1645224914764,0.3022,39986.0,39985.0,0.12123084]
[1645224914962,0.312419,39986.0,39985.0,0.00205054]
[1645224917319,0.38789122,39985.0,39984.0,0.00402595]
[1645224917517,0.79811022,39985.0,39984.0,0.00402595]
[1645224917719,0.335494,39984.0,39975.0,0.03096012]
[1645224917919,0.15,39977.0,39975.0,0.03096012]
[1645224918222,0.010219,39976.0,39975.0,0.03096012]
[1645224919763,0.345713,39976.0,39975.0,0.00816012]
[1645224919964,0.655713,39976.0,39975.0,0.00816012]
[1645224920171,0.020219,39976.0,39975.0,0.00816012]
[1645224922766,0.320219,39976.0,39975.0,0.00816012]
[1645224923164,0.020219,39976.0,39975.0,0.01164309]
[1645224925712,0.01,39976.0,39975.0,0.01164309]
[1645224925911,0.020219,39976.0,39975.0,0.01164309]
[1645224927359,0.01,39976.0,39975.0,0.01164309]
[1645224927958,0.01117507,39976.0,39975.0,0.00816012]
[1645224928160,0.01117507,39976.0,39975.0,0.34365412]
[1645224928358,0.00117507,39976.0,39975.0,0.34365412]
[1645224929860,0.0092,39981.0,39975.0,0.34365412]
[1645224929861,0.2554458,40016.0,40000.0,16.61732754]
[1645224930061,2.6936689,40001.0,40000.0,14.77580929]
[1645224930260,3.20337442,40001.0,40000.0,14.77580929]
[1645224930460,3.07014816,40001.0,40000.0,14.77580929]
[1645224930662,2.379797,40001.0,40000.0,14.77580929]
[1645224931114,1.402053,40001.0,40000.0,14.77580929]
[1645224931715,1.002053,40001.0,40000.0,14.77580929]
[1645224932513,1.02857856,40001.0,40000.0,14.77580929]
[1645224935067,2.00632256,40001.0,40000.0,14.77580929]
[1645224935267,1.02857856,40001.0,40000.0,14.77580929]
[1645224937070,1.45301025,40001.0,40000.0,14.77580929]
[1645224938072,1.03214935,40001.0,40000.0,14.77580929]
[1645224939910,1.02714935,40001.0,40000.0,14.77580929]
[1645224940110,1.02714935,40001.0,40000.0,13.92592986]
[1645224940310,1.13207543,40001.0,40000.0,13.92592986]
[1645224940512,1.00062379,40001.0,40000.0,13.92592986]
[1645224943266,0.997053,40001.0,40000.0,13.92592986]
[1645224943566,0.997053,40001.0,40000.0,13.57781324]
[1645224943567,1.41648469,40001.0,40000.0,13.57781324]
[1645224943767,2.8657823,40001.0,40000.0,8.29994658]
[1645224943969,2.734297,40001.0,40000.0,7.54140982]
[1645224944169,2.734297,40001.0,40000.0,7.31363013]
[1645224944472,2.984197,40001.0,40000.0,6.0939539]
[1645224944869,3.484197,40001.0,40000.0,5.7185199]
[1645224945069,2.506453,40001.0,40000.0,5.70040098]
[1645224945472,3.484197,40001.0,40000.0,2.22870037]
[1645224945770,3.484197,40001.0,40000.0,2.19736494]
[1645224946017,3.984197,40001.0,40000.0,1.78934194]
[1645224946217,3.006453,40001.0,40000.0,1.77305194]
[1645224951665,3.006453,40001.0,40000.0,1.39761794]
[1645224951866,10.38522793,40001.0,40000.0,1.22013083]
[1645224952269,10.38522793,40001.0,40000.0,0.84469683]
[1645224953266,10.42214814,40001.0,40000.0,0.84469683]
[1645224953521,10.38500117,40001.0,40000.0,0.84469683]
[1645224954312,10.38500117,40001.0,40000.0,0.46745383]
[1645224954512,10.42214976,40001.0,40000.0,0.46745383]
[1645224954915,10.42214976,40001.0,40000.0,0.09200183]
[1645224955319,0.7645,39998.0,39991.0,0.010219]
[1645224955513,1.18905985,39996.0,39991.0,0.010219]
[1645224955712,0.7645,39994.0,39984.0,0.010219]
[1645224955913,1.417994,39993.0,39984.0,0.010219]
[1645224956113,1.217594,39993.0,39984.0,0.010219]
[1645224956314,0.20052,39987.0,39984.0,0.010219]
[1645224956513,0.335494,39986.0,39976.0,0.3]
[1645224956913,0.435494,39986.0,39976.0,0.3]
[1645224957364,0.445394,39986.0,39976.0,0.3]
[1645224957765,0.062572,39985.0,39975.0,0.00816012]
[1645224958065,0.335494,39984.0,39975.0,0.00816012]
[1645224958262,0.385494,39984.0,39975.0,0.00816012]
[1645224962216,0.32521625,39984.0,39975.0,0.00816012]
[1645224962418,0.335507,39985.0,39975.0,0.00816012]
[1645224962617,0.0099,39986.0,39975.0,0.00210983]
[1645224963116,0.0099,39986.0,39976.0,0.062556]
[1645224963117,0.00106436,39983.0,39976.0,0.062556]
[1645224963316,0.00106436,39983.0,39977.0,0.3]
[1645224963716,0.00106436,39983.0,39977.0,0.41256034]
[1645224964117,0.00106436,39983.0,39978.0,0.21219808]
[1645224964316,0.335507,39982.0,39978.0,0.21219808]
[1645224964517,0.00106436,39983.0,39982.0,0.56662821]
[1645224964767,0.33657136,39983.0,39982.0,0.56662821]
[1645224966368,0.295847,39983.0,39982.0,0.56662821]
[1645224971521,0.00310436,39984.0,39982.0,0.56662821]
[1645224972768,0.0096,39991.0,39982.0,0.57168018]
[1645224972969,0.07502489,39987.0,39982.0,0.57168018]
[1645224973172,0.3355,39986.0,39982.0,0.57168018]
[1645224973970,0.07502489,39987.0,39982.0,0.57168018]
[1645224974172,0.3355,39986.0,39982.0,0.57168018]
[1645224974470,0.3355,39985.0,39982.0,0.57168018]
[1645224974671,0.07502489,39987.0,39982.0,0.57168018]
[1645224974872,0.3355,39986.0,39982.0,0.57168018]
[1645224976126,0.3355,39986.0,39982.0,0.56542221]
[1645224977727,0.3355,39986.0,39982.0,0.60542221]
[1645224977928,0.3355,39986.0,39985.0,0.00166366]
[1645224983167,0.3355,39986.0,39985.0,0.00478869]
[1645224988168,0.33697371,39986.0,39983.0,0.3]
[1645224988468,0.00223847,39986.0,39983.0,0.3]
[1645224988668,0.00223847,39986.0,39983.0,0.2]
[1645224989173,0.3355,39985.0,39983.0,0.2]
[1645224989868,0.00223847,39986.0,39983.0,0.2]
[1645224991519,0.3355,39985.0,39983.0,0.2]
[1645224991919,0.00223847,39986.0,39983.0,0.2]
[1645224992120,0.3355,39985.0,39983.0,0.2]
[1645224992925,0.00114645,39985.0,39983.0,0.2]
[1645224994970,0.335498,39984.0,39983.0,0.2]
[1645224995570,0.00114645,39985.0,39983.0,0.2]
[1645224995771,0.335498,39984.0,39983.0,0.2]
[1645224996371,0.33436629,39984.0,39983.0,0.2]
[1645224996572,0.34458529,39984.0,39983.0,0.2]
[1645224997973,0.34573105,39984.0,39983.0,0.2]
[1645224998529,0.33551205,39984.0,39983.0,0.2]
[1645225000024,0.33534205,39984.0,39983.0,0.2]
[1645225003372,0.33419629,39984.0,39983.0,0.20466368]
[1645225005678,0.335498,39986.0,39983.0,0.20466368]
[1645225006724,0.335498,39985.0,39983.0,0.20466368]
[1645225007924,0.08524389,39987.0,39983.0,0.20466368]
[1645225008126,0.335498,39986.0,39983.0,0.20466509]
[1645225011871,0.08524389,39987.0,39983.0,0.20466509]
[1645225012474,0.335498,39986.0,39983.0,0.20466509]
[1645225012671,0.335498,39985.0,39983.0,0.20466509]
[1645225012872,0.08524389,39987.0,39983.0,0.20466509]
[1645225013071,0.335498,39986.0,39985.0,0.00153517]
[1645225014321,0.33533122,39986.0,39985.0,0.00153517]
[1645225018275,0.33533122,39986.0,39984.0,0.00304058]
[1645225018276,0.33822082,39986.0,39983.0,0.2]
[1645225018675,0.33822082,39986.0,39985.0,0.1]
[1645225018676,0.0028896,39986.0,39985.0,0.1]
[1645225019276,0.0028896,39986.0,39983.0,0.2]
[1645225019477,0.01190795,39991.0,39984.0,0.51330438]
[1645225019677,0.335496,39990.0,39985.0,0.3]
[1645225019875,0.335496,39990.0,39984.0,0.51330438]
[1645225021122,0.07502257,39988.0,39984.0,0.51330438]
[1645225022924,0.00344997,39986.0,39984.0,0.51330438]
[1645225023123,0.00462857,39986.0,39984.0,0.51330438]
[1645225024623,0.07502257,39988.0,39987.0,0.00925714]
[1645225024871,0.41051857,39988.0,39987.0,0.00925714]
[1645225027874,0.07002257,39988.0,39987.0,0.00925714]
[1645225032870,0.07002257,39988.0,39987.0,0.0128303]
[1645225033070,0.07002257,39988.0,39987.0,0.01468094]
[1645225033872,0.40551857,39988.0,39987.0,0.01468094]
[1645225034873,0.40551857,39988.0,39987.0,0.01453094]
[1645225037919,0.40551857,39988.0,39987.0,0.01273922]
[1645225041574,0.40551857,39988.0,39987.0,0.11273922]
[1645225042775,0.40551857,39988.0,39987.0,0.11452517]
[1645225043528,0.07002257,39988.0,39987.0,0.11452517]
[1645225044723,0.07002257,39988.0,39987.0,0.01452517]
[1645225045723,0.07002257,39988.0,39987.0,0.31452517]
[1645225045923,0.07002257,39988.0,39987.0,0.01452517]
[1645225046124,0.07002257,39988.0,39987.0,0.31452517]
[1645225046328,0.07002257,39988.0,39987.0,0.41452517]
[1645225046525,0.07002257,39988.0,39987.0,0.11452517]
[1645225046924,0.07002257,39988.0,39987.0,0.01452517]
[1645225047367,0.07002257,39988.0,39987.0,0.11452517]
[1645225047568,0.07002257,39988.0,39987.0,0.01452517]
[1645225047767,0.07002257,39988.0,39987.0,0.31452517]
[1645225047967,0.07002257,39988.0,39987.0,0.01452517]
[1645225048171,0.07112233,39988.0,39987.0,0.00925714]
[1645225050570,0.07112233,39988.0,39987.0,0.04925714]
[1645225050771,0.07112233,39988.0,39987.0,0.34925714]
[1645225051030,2.33e-06,39988.0,39987.0,0.68475314]
[1645225051224,2.33e-06,39988.0,39987.0,0.69415314]
[1645225051823,2.33e-06,39988.0,39987.0,1.45865314]
[1645225053024,0.00089285,39988.0,39987.0,1.45865314]
[1645225053225,0.00183729,39989.0,39988.0,0.00088265]
[1645225053426,1.312e-05,39995.0,39988.0,1.37638865]
[1645225053627,0.00032275,39998.0,39996.0,0.15]
[1645225053829,0.00032275,39998.0,39997.0,0.645309]
[1645225054026,0.001,40002.0,39997.0,0.4599]
[1645225054027,0.00132275,40002.0,39997.0,0.4599]
[1645225054231,0.00032275,40001.0,40000.0,0.1]
[1645225054429,0.00132275,40002.0,40000.0,0.1]
[1645225055072,0.00132275,40002.0,40000.0,0.16251551]
[1645225055673,0.00132275,40002.0,40000.0,0.46251551]
[1645225055872,0.00132275,40002.0,40000.0,2.14428147]
[1645225057771,0.00132275,40002.0,40001.0,0.3]
[1645225057972,0.001,40002.0,40001.0,0.3]
[1645225058171,0.00170092,40002.0,40001.0,0.3]
[1645225062029,0.00170092,40002.0,40000.0,1.91701647]
[1645225062268,0.00202367,40002.0,40000.0,1.91701647]
[1645225062871,0.00132275,40002.0,40001.0,0.00206468]
[1645225063070,0.001,40002.0,40001.0,0.00206468]
[1645225063271,0.001,40002.0,40001.0,0.30206468]
[1645225064872,0.001,40002.0,40001.0,0.00206468]
[1645225066528,0.001,40002.0,40001.0,0.30206468]
[1645225067329,0.001,40002.0,40001.0,0.35206468]
[1645225067626,0.00132275,40003.0,40002.0,0.152]
[1645225067828,0.001,40003.0,40002.0,0.152]
[1645225069126,0.001,40003.0,40002.0,0.002]
[1645225072875,0.001,40003.0,40002.0,0.00806095]
[1645225073727,0.336496,40003.0,40002.0,0.00806095]
[1645225074723,0.336496,40003.0,40002.0,0.04806095]
[1645225078178,0.33780177,40003.0,40002.0,0.042]
[1645225078374,0.48780177,40003.0,40002.0,0.042]
[1645225079374,0.33780177,40003.0,40002.0,0.042]
[1645225079574,0.33780177,40003.0,40002.0,0.142]
[1645225079575,0.00230577,40003.0,40002.0,0.142]
[1645225082123,0.00230577,40003.0,40002.0,0.042]
[1645225082524,0.00230577,40003.0,40002.0,0.142]
[1645225083131,0.00279137,40003.0,40002.0,0.142]
[1645225083324,0.00305049,40003.0,40002.0,0.142]
[1645225083526,0.00305049,40003.0,40002.0,0.042]
[1645225084871,0.00120863,40004.0,40002.0,0.042]
[1645225085072,0.00088588,40004.0,40002.0,0.042]
[1645225087574,0.3382601,40003.0,40002.0,0.042]
[1645225088626,0.0027641,40003.0,40002.0,0.042]
[1645225089024,0.3382601,40003.0,40002.0,0.042]
[1645225092372,0.3882601,40003.0,40002.0,0.042]
[1645225093178,0.3382601,40003.0,40002.0,0.042]
[1645225093378,0.3382601,40003.0,40002.0,0.04651703]
[1645225093379,0.335496,40003.0,40002.0,0.04651703]
[1645225098224,0.335496,40003.0,40002.0,0.04429371]
[1645225099126,0.332196,40003.0,40002.0,0.04429371]
[1645225100875,0.00088588,40004.0,40002.0,0.04429371]
[1645225101675,0.00088588,40004.0,40003.0,0.010219]
[1645225102078,0.33633688,40004.0,40003.0,0.010219]
[1645225102277,0.33633688,40004.0,40003.0,2.57455293]
[1645225102678,0.33633688,40004.0,40003.0,0.010219]
[1645225102881,0.33633688,40004.0,40002.0,0.04429371]
[1645225103277,0.33633688,40004.0,40002.0,0.04885618]
[1645225104823,0.38633688,40004.0,40002.0,0.04885618]
[1645225106825,0.38133688,40004.0,40002.0,0.04885618]
[1645225107273,0.00088588,40004.0,40002.0,0.04885618]
[1645225107471,0.00088588,40004.0,40003.0,0.010219]
[1645225108370,0.00088588,40004.0,40003.0,0.110219]
[1645225109071,0.00088588,40004.0,40003.0,0.010219]
[1645225112724,0.00088588,40004.0,40002.0,0.042]
[1645225117379,0.00120863,40004.0,40002.0,0.042]
[1645225121734,0.00120863,40004.0,40002.0,0.10451808]
[1645225121931,0.00120863,40004.0,40002.0,0.042]
[1645225122977,0.00120863,40004.0,40003.0,0.00687967]
[1645225123178,0.00088588,40004.0,40003.0,0.00687967]
[1645225125779,0.33633688,40004.0,40003.0,0.00687967]
[1645225126033,0.00088588,40004.0,40003.0,0.00687967]
[1645225128029,0.00088588,40004.0,40003.0,0.00460968]
[1645225130585,0.00088588,40004.0,40003.0,0.10460968]
[1645225130989,0.00088588,40004.0,40003.0,0.00460968]
[1645225134931,0.33633688,40004.0,40003.0,0.00460968]
[1645225137376,0.33633688,40004.0,40003.0,0.00449581]
[1645225138176,0.33633688,40004.0,40002.0,0.042]
[1645225138476,0.33665963,40004.0,40002.0,0.042]
[1645225139777,0.33633688,40004.0,40002.0,0.042]
[1645225140578,0.38633688,40004.0,40002.0,0.042]
[1645225140783,0.53633688,40004.0,40002.0,0.042]
[1645225141244,0.05,40003.0,40002.0,0.042]
[1645225141443,0.385451,40003.0,40002.0,0.037]
[1645225141845,0.485451,40003.0,40002.0,0.037]
[1645225143049,0.25,40002.0,39988.0,0.00790165]
[1645225143246,0.062552,39998.0,39988.0,0.00790165]
[1645225143444,0.635451,39997.0,39988.0,0.00790165]
[1645225143645,0.748008,39997.0,39988.0,0.00790165]
[1645225143846,0.848008,39997.0,39988.0,0.00790165]
[1645225144882,0.062557,39995.0,39988.0,0.00790165]
[1645225145082,0.635451,39994.0,39988.0,0.00790165]
[1645225145284,0.635451,39994.0,39987.0,0.00925714]
[1645225145685,0.685451,39994.0,39987.0,0.00925714]
[1645225146084,0.062563,39992.0,39987.0,0.00925714]
[1645225146283,0.635451,39991.0,39987.0,0.00925714]
[1645225147286,0.748018,39991.0,39987.0,0.00925714]
[1645225148534,0.873163,39991.0,39987.0,0.00925714]
[1645225149530,0.748018,39991.0,39987.0,0.00925714]
[1645225150335,0.898018,39991.0,39987.0,0.00925714]
[1645225150932,0.91014643,39991.0,39987.0,0.00925714]
[1645225151133,0.01276167,39989.0,39987.0,0.00925714]
[1645225151432,0.398019,39988.0,39987.0,0.00925714]
[1645225151634,0.498019,39988.0,39987.0,0.00925714]
[1645225151832,0.598019,39988.0,39987.0,0.00925714]
[1645225153882,0.598019,39988.0,39983.0,0.19425714]
[1645225154883,0.535451,39988.0,39983.0,0.19425714]
[1645225158030,0.535451,39988.0,39985.0,0.00472081]
[1645225159779,0.598017,39988.0,39985.0,0.00472081]
[1645225159980,0.535451,39988.0,39985.0,0.00472081]
[1645225162679,0.598017,39988.0,39985.0,0.00472081]
[1645225163080,0.3,39987.0,39985.0,0.00472081]
[1645225163280,0.335451,39986.0,39985.0,0.00232728]
[1645225164031,0.2,39988.0,39986.0,0.2311372]
[1645225164231,0.335494,39987.0,39986.0,0.2311372]
[1645225167582,0.33540367,39987.0,39986.0,0.2311372]
[1645225168582,0.33540367,39987.0,39986.0,0.2261372]
[1645225171230,0.63540367,39987.0,39986.0,0.2261372]
[1645225172132,0.33540367,39987.0,39986.0,0.2261372]
[1645225174140,0.63540367,39987.0,39986.0,0.2261372]
[1645225174436,0.33540367,39987.0,39986.0,0.2261372]
[1645225181440,0.63540367,39987.0,39986.0,0.2261372]
[1645225182883,0.63540367,39987.0,39986.0,0.23286168]
[1645225183484,0.33540367,39987.0,39986.0,0.23286168]
[1645225184388,0.63540367,39987.0,39986.0,0.23286168]
[1645225186732,0.33540367,39987.0,39986.0,0.23286168]
[1645225188237,0.33540367,39987.0,39986.0,0.23063641]
[1645225190887,0.33540367,39987.0,39986.0,0.21456141]
[1645225193089,0.33540367,39987.0,39986.0,0.21901214]
[1645225198098,0.63540367,39987.0,39986.0,0.21227332]
[1645225198501,0.33540367,39987.0,39986.0,0.21227332]
[1645225199903,0.43540367,39987.0,39986.0,0.21227332]
[1645225200103,0.43540367,39987.0,39986.0,0.21028332]
[1645225200303,0.43540367,39987.0,39986.0,0.20978332]
[1645225200505,0.73540367,39987.0,39986.0,0.20978332]
[1645225202144,0.73540367,39987.0,39986.0,0.20478332]
[1645225202549,0.73607839,39987.0,39986.0,0.20478332]
[1645225203847,0.43607839,39987.0,39986.0,0.20478332]
[1645225205194,0.57752697,39987.0,39986.0,0.20478332]
[1645225205391,0.43607839,39987.0,39986.0,0.20478332]
[1645225207798,0.33607839,39987.0,39986.0,0.20478332]
[1645225209032,0.33607839,39987.0,39986.0,0.39260928]
[1645225210440,0.33607839,39987.0,39986.0,0.49260928]
[1645225210637,0.33607839,39987.0,39986.0,0.39260928]
[1645225210834,0.33607839,39987.0,39986.0,0.38797663]
[1645225214786,0.00067472,39987.0,39986.0,0.48797663]
[1645225214988,0.00067472,39987.0,39986.0,0.97346663]
[1645225215187,0.00067472,39987.0,39986.0,0.63797663]
[1645225216048,0.010219,39991.0,39988.0,0.21620073]
[1645225216241,0.010219,39993.0,39990.0,0.1]
[1645225216438,0.33549,39992.0,39988.0,0.21620073]
[1645225216637,0.010219,39993.0,39991.0,0.19391298]
[1645225216838,0.0063,39997.0,39991.0,0.19391298]
[1645225217038,0.07501431,39993.0,39991.0,0.19391298]
[1645225217842,0.33549,39996.0,39991.0,0.19391298]
[1645225218244,0.33549,39996.0,39992.0,0.1]
[1645225218442,0.33549,39996.0,39991.0,0.09391298]
[1645225218443,0.33549,39993.0,39991.0,0.09391298]
[1645225219045,0.345709,39993.0,39991.0,0.09391298]
[1645225219447,0.470837,39993.0,39991.0,0.09391298]
[1645225219648,0.408271,39993.0,39991.0,0.09391298]
[1645225221095,0.33549,39993.0,39991.0,0.09391298]
[1645225221296,0.062553,39996.0,39993.0,0.15]
[1645225221304,0.010219,39996.0,39993.0,0.15]
[1645225221495,0.0063,39997.0,39993.0,0.15]
[1645225221496,0.33549,39995.0,39993.0,0.15]
[1645225221695,0.33549,39995.0,39992.0,0.1]
[1645225221899,0.33549,39995.0,39994.0,0.09391298]
[1645225222097,0.33549,39995.0,39994.0,0.18782596]
[1645225226634,0.33549,39995.0,39994.0,0.53782596]
[1645225226834,0.07500556,39998.0,39994.0,0.53782596]
[1645225226835,0.33549,39997.0,39994.0,0.18782596]
[1645225227033,0.010219,39999.0,39994.0,0.18782596]
[1645225227290,0.010219,39999.0,39991.0,0.35]
[1645225227291,0.33549,39998.0,39991.0,0.35]
[1645225227595,0.33549,39998.0,39996.0,0.09391298]
[1645225227790,0.33549,39998.0,39997.0,0.1]
[1645225228594,0.33549,39998.0,39996.0,0.09391298]